bitfinex-derivatives/quotes_ETHF0:USTF0_20250320
["timestamp","ask_amount","ask_price","bid_price","bid_amount"]
[1742454573264,3.2078,2012.6,2012.5,3.63636]
[1742454574469,4.5794,2012.6,2012.5,3.63636]
[1742454576772,3.2078,2012.6,2012.5,3.63636]
[1742454577176,0.00744472,2012.8,2012.7,0.99367]
[1742454577870,0.00744472,2012.8,2012.7,2.28537]
[1742454578677,0.00744472,2012.8,2012.7,1.2917]
[1742454578869,1.39574472,2012.8,2012.7,1.83414947]
[1742454579277,2.38936472,2012.8,2012.7,1.83414947]
[1742454579475,1.39574472,2012.8,2012.7,1.83414947]
[1742454579878,1.39574472,2012.8,2012.7,2.82781947]
[1742454580172,0.00744472,2012.8,2012.7,2.82781947]
[1742454580972,0.00744472,2012.8,2012.7,2.8275415]
[1742454583092,0.00744472,2012.8,2012.7,2.82722772]
[1742454585683,0.00744472,2012.8,2012.7,6.03502772]
[1742454586191,3.2078,2013.2,2013.1,0.99347]
[1742454586393,3.2078,2013.2,2013.1,1.53532772]
[1742454586990,3.2078,2013.2,2013.1,2.18152772]
[1742454587800,3.2078,2013.2,2013.1,42.98152772]
[1742454587997,1.3917,2013.3,2013.1,41.98805772]
[1742454588202,0.00744472,2013.4,2013.3,0.99337]
[1742454588406,0.00744472,2013.4,2013.3,2.92712772]
[1742454588796,0.00744472,2013.4,2013.3,6.12112772]
[1742454590487,1.33404472,2013.4,2013.3,6.12112772]
[1742454591089,1.33404472,2013.4,2013.3,5.57927]
[1742454591389,0.00744472,2013.4,2013.3,6.11969532]
[1742454595402,0.00744472,2013.4,2013.3,6.11930826]
[1742454600108,0.00744472,2013.4,2013.3,6.11918386]
[1742454601103,0.00744472,2013.4,2013.3,6.11926011]
[1742454603503,4.72e-06,2013.4,2013.3,11.82706011]
[1742454604107,3.2078,2013.8,2013.7,0.99317]
[1742454604307,3.2078,2013.8,2013.7,4.72516011]
[1742454604705,3.8913,2013.8,2013.7,0.53999011]
[1742454604907,4.5591,2013.8,2013.7,0.53999011]
[1742454605110,5.9077,2013.8,2013.7,0.5403281]
[1742454606916,5.9077,2013.8,2013.7,1.5334981]
[1742454607116,5.9077,2013.8,2013.7,1.53384912]
[1742454608413,5.9077,2013.8,2013.7,0.54067912]
[1742454608815,5.9077,2013.8,2013.7,1.53384912]
[1742454609214,5.9077,2013.8,2013.7,1.5340323]
[1742454610515,5.9077,2013.8,2013.7,1.5343691]
[1742454611216,5.9077,2013.8,2013.7,1.53437381]
[1742454611711,6.90082,2013.8,2013.7,0.54120381]
[1742454612815,6.90082,2013.8,2013.7,1.53437381]
[1742454613416,5.9077,2013.8,2013.7,1.53437381]
[1742454615319,5.9077,2013.8,2013.7,1.53543223]
[1742454617316,5.9077,2013.8,2013.7,0.54271978]
[1742454618022,5.9077,2013.8,2013.7,1.95141978]
[1742454618023,6.90082,2013.8,2013.7,1.95141978]
[1742454618214,5.9077,2013.8,2013.7,1.95141978]
[1742454618616,6.90082,2013.8,2013.7,1.95141978]
[1742454618918,5.9077,2013.8,2013.7,2.94458978]
[1742454619417,5.9077,2013.8,2013.7,2.94470663]
[1742454620914,5.9077,2013.8,2013.7,1.95153663]
[1742454621815,5.9077,2013.8,2013.7,2.94470663]
[1742454622626,4.5564,2013.8,2013.7,2.94470663]
[1742454624113,5.54952,2013.8,2013.7,1.95153663]
[1742454624323,4.5564,2013.8,2013.7,1.95153663]
[1742454624514,4.5564,2013.8,2013.7,2.94470663]
[1742454629524,4.5564,2013.8,2013.7,2.9447702]
[1742454631129,4.5564,2013.8,2013.7,3.6393702]
[1742454631130,3.2078,2013.8,2013.7,3.6393702]
[1742454631325,0.00744472,2014.0,2013.7,3.6393702]
[1742454631534,0.00744472,2014.0,2013.9,0.99307]
[1742454631724,0.00744472,2014.0,2013.9,2.9513702]
[1742454632024,0.00744472,2014.0,2013.9,5.4513702]
[1742454632230,3.2078,2014.5,2014.4,0.99283]
[1742454632530,3.2078,2014.5,2014.4,1.5357302]
[1742454632731,4.5023,2014.5,2014.4,43.01452556]
[1742454632930,4.5023,2014.5,2014.4,44.38542556]
[1742454633129,5.1924,2014.5,2014.4,43.7066302]
[1742454633331,5.1924,2014.5,2014.4,42.7138002]
[1742454633832,6.18518,2014.5,2014.4,41.3429002]
[1742454634027,6.18518,2014.5,2014.4,0.5419898]
[1742454634233,9.37618,2014.5,2014.4,0.5419898]
[1742454634430,8.3834,2014.5,2014.4,0.5419898]
[1742454634622,8.3834,2014.5,2014.4,1.5348198]
[1742454635728,9.37618,2014.5,2014.4,1.53451138]
[1742454636132,8.3834,2014.5,2014.4,1.53451138]
[1742454637934,5.1924,2014.5,2014.4,1.53427636]
[1742454639832,4.5023,2014.5,2014.4,2.90446682]
[1742454642634,3.2078,2014.5,2014.4,2.90446682]
[1742454643334,1.3934,2014.6,2014.5,0.99278]
[1742454643535,1.3934,2014.6,2014.5,2.94991682]
[1742454644939,1.3934,2014.6,2014.5,1.95713682]
[1742454645334,2.38613,2014.6,2014.5,1.95713682]
[1742454645740,1.3934,2014.6,2014.5,2.94991682]
[1742454646241,1.3934,2014.6,2014.5,1.95713682]
[1742454646434,1.3934,2014.6,2014.5,2.94991682]
[1742454646738,2.38613,2014.6,2014.5,1.95713682]
[1742454646928,2.38613,2014.6,2014.5,2.94991682]
[1742454646929,1.3934,2014.6,2014.5,2.94991682]
[1742454648137,1.3934,2014.6,2014.5,0.54068382]
[1742454648336,1.3934,2014.6,2014.5,1.53346382]
[1742454648928,2.38613,2014.6,2014.5,0.54068382]
[1742454649445,2.38613,2014.6,2014.5,1.53346382]
[1742454650037,2.38613,2014.6,2014.5,1.53353735]
[1742454650240,1.3934,2014.6,2014.5,1.53353735]
[1742454651438,4.6012,2014.6,2014.5,1.53353735]
[1742454652241,5.59393,2014.6,2014.5,1.53362775]
[1742454652440,4.6012,2014.6,2014.5,1.53362775]
[1742454653939,5.59393,2014.6,2014.5,1.53362775]
[1742454654142,5.59393,2014.6,2014.5,1.53386926]
[1742454654745,5.59393,2014.6,2014.5,0.54108926]
[1742454655243,5.59393,2014.6,2014.5,2.94406926]
[1742454655546,4.6012,2014.6,2014.5,2.94406926]
[1742454656235,4.6012,2014.6,2014.5,2.94433189]
[1742454656743,5.59393,2014.6,2014.5,2.94433189]
[1742454656942,5.59393,2014.6,2014.5,1.95155189]
[1742454657652,5.59393,2014.6,2014.5,2.94433189]
[1742454658268,5.59393,2014.6,2014.5,2.94471725]
[1742454659340,4.6012,2014.6,2014.5,2.94471725]
[1742454660338,4.6012,2014.6,2014.5,2.94524861]
[1742454661043,4.6012,2014.6,2014.5,3.62396183]
[1742454661648,4.6012,2014.6,2014.5,2.94524861]
[1742454661945,4.6012,2014.6,2014.5,2.63168361]
[1742454662142,5.59393,2014.6,2014.5,2.63168361]
[1742454662543,4.6012,2014.6,2014.5,3.62446361]
[1742454662944,3.2078,2014.6,2014.5,3.62446361]
[1742454663740,3.2078,2014.6,2014.5,3.62480335]
[1742454664442,3.2078,2014.6,2014.5,3.08216167]
[1742454664645,3.2078,2014.6,2014.5,3.62482755]
[1742454667949,3.2078,2014.6,2014.5,3.6250674]
[1742454668252,3.2078,2014.6,2014.5,6.8140674]
[1742454670057,3.2078,2014.6,2014.5,9.31412751]
[1742454670363,0.00744472,2014.7,2014.6,0.99273]
[1742454670552,3.2078,2015.2,2014.8,0.99263]
[1742454670747,3.2078,2015.2,2015.1,0.99244]
[1742454670950,3.2078,2015.2,2015.1,1.53522566]
[1742454671862,3.2078,2015.2,2015.1,42.33522566]
[1742454672162,3.2078,2015.2,2015.1,41.34278566]
[1742454672460,4.20023,2015.2,2015.1,41.34278566]
[1742454672660,4.20023,2015.2,2015.1,42.71848566]
[1742454673161,4.20023,2015.2,2015.1,0.54278566]
[1742454673362,7.38923,2015.2,2015.1,0.54278566]
[1742454673757,6.3968,2015.2,2015.1,1.53526566]
[1742454674162,6.3968,2015.2,2015.1,1.53423206]
[1742454674662,7.38923,2015.2,2015.1,1.53423206]
[1742454674862,8.75383,2015.2,2015.1,1.53423206]
[1742454675657,8.75383,2015.2,2015.1,0.54175206]
[1742454675854,8.75383,2015.2,2015.1,1.53423206]
[1742454676059,0.99248,2015.1,2015.0,0.99252]
[1742454676365,2.695,2015.1,2015.0,0.54146978]
[1742454676669,2.695,2015.1,2015.0,2.90089978]
[1742454678168,2.695,2015.1,2015.0,2.90076877]
[1742454681868,2.0481,2015.1,2015.0,2.90076877]
[1742454682368,1.3646,2015.1,2015.0,2.90076877]
[1742454682562,3.2078,2015.2,2015.1,0.99248]
[1742454682768,4.5069,2015.2,2015.1,3.47971877]
[1742454683467,4.5069,2015.2,2015.1,6.66771877]
[1742454683661,3.2078,2015.2,2015.1,6.66771877]
[1742454684367,4.5684,2015.2,2015.1,6.6675638]
[1742454685272,5.2248,2015.2,2015.1,6.6675638]
[1742454685770,4.5684,2015.2,2015.1,6.6675638]
[1742454686368,3.2078,2015.2,2015.1,6.66757031]
[1742454686567,4.5684,2015.2,2015.1,6.66757031]
[1742454687373,4.5684,2015.2,2015.1,5.02059031]
[1742454687674,6.25483,2015.2,2015.1,0.54119031]
[1742454687978,0.99253,2015.0,2014.9,0.00744472]
[1742454688375,4.18053,2015.0,2014.9,0.00744472]
[1742454688577,6.20523,2015.0,2014.9,0.00744472]
[1742454688883,0.99268,2014.8,2014.6,2.36763]
[1742454689071,3.9018,2014.7,2014.6,2.36763]
[1742454689376,6.21228,2014.7,2014.6,2.36763]
[1742454689771,5.2196,2014.7,2014.6,1.3749]
[1742454690372,0.99273,2014.6,2014.5,41.79278]
[1742454690574,2.29023,2014.6,2014.5,41.79278]
[1742454691168,2.29023,2014.6,2014.5,0.99278]
[1742454691571,0.99278,2014.5,2014.4,41.80023472]
[1742454691778,2.29028,2014.5,2014.4,40.80744472]
[1742454691981,2.98938,2014.5,2014.4,40.80744472]
[1742454692175,2.98938,2014.5,2014.4,0.00744472]
[1742454693175,2.98938,2014.5,2014.4,1.00027472]
[1742454693176,1.9966,2014.5,2014.4,1.00027472]
[1742454695169,1.9966,2014.5,2014.4,1.67762484]
[1742454695375,1.9966,2014.5,2014.4,1.00027472]
[1742454695577,3.9018,2014.7,2014.6,0.99273]
[1742454695781,3.2078,2014.7,2014.5,3.05283]
[1742454695981,2.017,2014.6,2014.5,2.0601]
[1742454696177,2.017,2014.6,2014.5,0.6764]
[1742454696576,2.017,2014.6,2014.5,1.66918]
[1742454697277,3.00974,2014.6,2014.4,1.00023472]
[1742454697473,1.3284,2014.5,2014.4,1.00023472]
[1742454698082,1.3284,2014.5,2014.4,41.80023472]
[1742454700082,1.3284,2014.5,2014.4,43.01211713]
[1742454700479,1.3284,2014.5,2014.4,42.33487639]
[1742454702682,3.2078,2014.7,2014.6,0.99273]
[1742454702882,4.5062,2014.7,2014.6,1.52731638]
[1742454704082,5.49888,2014.7,2014.6,0.53458638]
[1742454704888,4.5062,2014.7,2014.6,0.53460597]
[1742454705089,5.49888,2014.7,2014.6,0.53460597]
[1742454708686,4.5062,2014.7,2014.6,1.52733597]
[1742454708884,3.2078,2014.7,2014.6,1.52739597]
[1742454709082,3.2078,2014.7,2014.6,2.20473252]
[1742454710289,4.5304,2014.7,2014.6,2.20473252]
[1742454710793,3.2078,2014.7,2014.6,2.20473252]
[1742454710993,3.2078,2014.7,2014.6,2.20475952]
[1742454712389,3.2078,2014.7,2014.6,1.21202952]
[1742454712690,4.6167,2014.7,2014.6,1.2122612]
[1742454712884,4.6167,2014.7,2014.5,0.99274]
[1742454713090,4.6167,2014.7,2014.4,47.20324472]
[1742454713091,3.2078,2014.7,2014.6,2.20529852]
[1742454713289,3.2078,2014.7,2014.6,1.21256852]
[1742454714291,3.2078,2014.7,2014.6,2.53856852]
[1742454714987,3.2078,2014.7,2014.6,3.53129852]
[1742454715885,3.2078,2014.7,2014.6,2.53856852]
[1742454716087,3.2078,2014.7,2014.6,3.53129852]
[1742454717390,3.99749645,2015.0,2014.8,0.99259]
[1742454717581,3.99749645,2015.0,2014.9,2.57833394]
[1742454717787,4.99002645,2015.0,2014.9,1.89966937]
[1742454718191,3.99749645,2015.0,2014.9,1.89966937]
[1742454718395,4.99002645,2015.0,2014.9,1.89966937]
[1742454719095,4.99002645,2015.0,2014.9,1.90056571]
[1742454719395,5.64142645,2015.0,2014.9,1.90056571]
[1742454719891,5.64142645,2015.0,2014.9,0.53576571]
[1742454720499,4.64889645,2015.0,2014.9,0.99258]
[1742454720703,4.64889645,2015.0,2014.9,1.52827753]
[1742454720890,4.64889645,2015.0,2014.9,0.53569753]
[1742454721091,5.64142645,2015.0,2014.9,0.53569753]
[1742454721904,4.64889645,2015.0,2014.9,1.52827753]
[1742454722600,4.64889645,2015.0,2014.9,1.52834715]
[1742454722895,5.64142645,2015.0,2014.9,0.53576715]
[1742454723294,5.64142645,2015.0,2014.9,1.84636715]
[1742454723899,5.64142645,2015.0,2014.9,0.53576715]
[1742454724400,6.97112645,2015.0,2014.9,0.53576715]
[1742454726803,6.97112645,2015.0,2014.7,1.3106]
[1742454726804,0.99263,2014.8,2014.7,1.3106]
[1742454727001,1.3437,2014.9,2014.7,3.51821288]
[1742454727300,2.33628,2014.9,2014.8,1.9404052]
[1742454727898,2.33628,2014.9,2014.8,2.9330352]
[1742454728100,2.33628,2014.9,2014.8,0.5360052]
[1742454728901,0.99263,2014.8,2014.7,2.39706]
[1742454729100,2.33633,2014.8,2014.7,1.52875781]
[1742454729306,1.3437,2014.8,2014.7,2.2078607]
[1742454729605,7.83689645,2015.0,2014.9,0.99258]
[1742454729795,8.82942645,2015.0,2014.9,0.53609781]
[1742454730996,0.99262,2014.9,2014.8,0.99263]
[1742454731195,2.38662,2014.9,2014.8,1.52881688]
[1742454731399,2.38658,2014.9,2014.8,1.52881688]
[1742454731997,2.38658,2014.9,2014.8,0.53618688]
[1742454732402,2.38658,2014.9,2014.8,1.52881688]
[1742454732904,3.2078,2015.3,2015.2,0.99243]
[1742454733201,4.20018,2015.3,2015.2,0.53619328]
[1742454733390,6.84828,2015.3,2015.2,0.53619328]
[1742454733590,12.80828,2015.3,2015.2,0.53619328]
[1742454735006,0.99244,2015.2,2015.0,0.9925]
[1742454735307,3.231,2015.1,2015.0,0.99253]
[1742454735490,3.231,2015.1,2015.0,1.52830628]
[1742454735693,4.5685,2015.1,2015.0,1.52830628]
[1742454735906,5.56098,2015.1,2015.0,0.53577628]
[1742454737105,5.56098,2015.1,2015.0,0.53581745]
[1742454738200,4.5685,2015.1,2015.0,1.52834745]
[1742454742301,5.56098,2015.1,2015.0,0.53581745]
[1742454742691,4.5685,2015.1,2015.0,1.52834745]
[1742454743195,4.5685,2015.1,2015.0,1.52843926]
[1742454744006,5.56098,2015.1,2015.0,0.53590926]
[1742454744503,5.56098,2015.1,2015.0,1.85650926]
[1742454745296,4.5685,2015.1,2015.0,1.85650926]
[1742454746204,5.56098,2015.1,2015.0,1.85650926]
[1742454746405,4.5685,2015.1,2015.0,1.85650926]
[1742454746907,5.56098,2015.1,2015.0,1.85650926]
[1742454747306,4.5685,2015.1,2015.0,2.84903926]
[1742454748201,5.56098,2015.1,2015.0,2.84903926]
[1742454748402,2.32998,2015.1,2015.0,2.84903926]
[1742454748607,5.55198,2015.1,2015.0,1.85650926]
[1742454749204,5.55198,2015.1,2015.0,1.85654856]
[1742454749404,5.55198,2015.1,2015.0,1.85654893]
[1742454751100,11.51198,2015.1,2015.0,0.53594893]
[1742454751306,0.99258,2014.9,2014.8,1.3318]
[1742454751609,7.41938,2014.9,2014.8,1.3318]
[1742454752107,8.79498,2014.9,2014.8,1.3318]
[1742454752512,8.79498,2014.9,2014.8,2.32443]
[1742454752703,7.8024,2014.9,2014.8,2.32443]
[1742454753400,6.4278,2014.9,2014.8,2.32443]
[1742454753800,3.2078,2014.9,2014.8,2.32443]
[1742454754003,3.2078,2014.9,2014.8,43.12443]
[1742454755008,3.2078,2014.9,2014.8,2.32443]
[1742454756201,3.2078,2014.9,2014.8,3.01063]
[1742454761515,4.6199,2014.9,2014.8,3.01063]
[1742454762704,3.2078,2014.9,2014.8,3.01063]
[1742454766515,1.2861,2015.0,2014.9,0.99258]
[1742454766715,4.4939,2015.0,2014.9,2.40448]
[1742454767416,5.48643,2015.0,2014.9,1.4119]
[1742454767610,3.2078,2015.0,2014.9,2.40448]
[1742454767812,3.2078,2015.0,2014.9,3.05078]
[1742454770110,5.96,2015.1,2015.0,0.99253]
[1742454770425,5.96,2015.1,2015.0,2.33123]
[1742454771809,1.4153,2015.2,2015.1,0.99248]
[1742454772012,1.4153,2015.2,2015.1,3.01598]
[1742454773412,3.8596,2015.3,2015.2,0.99243]
[1742454773721,5.2776,2015.3,2015.2,2.32443]
[1742454774420,4.6258,2015.3,2015.2,2.32443]
[1742454774621,4.6258,2015.3,2015.2,3.00023]
[1742454775015,3.2078,2015.3,2015.2,3.00023]
[1742454778811,3.2078,2015.3,2015.2,2.32443]
[1742454784824,0.00744472,2015.4,2015.3,0.99238]
[1742454785026,0.00744472,2015.4,2015.3,3.03258]
[1742454785518,0.00744472,2015.4,2015.3,2.36868]
[1742454786723,1.37344472,2015.4,2015.3,2.36868]
[1742454787120,2.03504472,2015.4,2015.3,2.36868]
[1742454791032,1.37344472,2015.4,2015.3,2.36868]
[1742454793725,1.37344472,2015.4,2015.3,5.58268]
[1742454794133,0.00744472,2015.4,2015.3,5.58268]
[1742454796029,1.31024472,2015.4,2015.3,5.58268]
[1742454799327,1.31024472,2015.4,2015.3,4.5903]
[1742454799535,2.30257472,2015.4,2015.3,4.20638]
[1742454799727,2.30257472,2015.4,2015.3,0.99238]
[1742454799932,1.31024472,2015.4,2015.2,1.3092]
[1742454800139,2.0725,2015.3,2015.2,1.3092]
[1742454800431,2.0725,2015.3,2015.2,0.99243]
[1742454804846,2.0725,2015.3,2015.2,2.39933]
[1742454805247,1.3963,2015.3,2015.2,2.39933]
[1742454812353,0.00744472,2015.4,2015.3,0.99238]
[1742454812650,1.29014472,2015.4,2015.3,2.31158]
[1742454819949,1.29014472,2015.4,2015.1,3.8605]
[1742454820149,1.29014472,2015.4,2015.3,0.99238]
[1742454827052,2.28247472,2015.4,2015.3,0.99238]
[1742454827560,1.29014472,2015.4,2015.3,0.99238]
[1742454827951,2.28247472,2015.4,2015.3,0.99238]
[1742454828758,1.29014472,2015.4,2015.3,0.99238]
[1742454829262,2.28247472,2015.4,2015.3,0.99238]
[1742454830056,0.99238,2015.3,2015.2,2.2947]
[1742454830256,1.2879,2015.3,2015.2,2.2947]
[1742454830761,1.2879,2015.3,2015.2,0.9924]
[1742454831152,0.99243,2015.2,2015.1,0.99248]
[1742454831356,2.37833,2015.2,2015.1,0.99248]
[1742454831656,1.3859,2015.2,2015.1,0.99248]
[1742454831858,1.3859,2015.2,2015.1,2.36068]
[1742454832051,1.9701,2015.2,2015.1,2.36068]
[1742454835262,3.20144472,2015.4,2015.3,0.99238]
[1742454835465,1.99894472,2015.4,2015.3,0.99238]
[1742454835959,1.99894472,2015.4,2015.2,1.4088]
[1742454836164,2.34398,2015.3,2015.2,1.4088]
[1742454836463,1.3516,2015.3,2015.2,2.40123]
[1742454836863,2.34398,2015.3,2015.1,0.99244]
[1742454837064,0.6515,2015.2,2015.1,2.36924]
[1742454837256,2.0031,2015.2,2015.1,2.36924]
[1742454845375,1.3516,2015.2,2015.1,2.36924]
[1742454846276,0.67354472,2015.4,2015.3,0.99238]
[1742454846462,2.07774472,2015.4,2015.3,0.99238]
[1742454846768,3.07007472,2015.4,2015.2,3.06989]
[1742454846974,0.67354472,2015.4,2015.3,2.36788]
[1742454849174,0.00744472,2015.4,2015.3,2.36788]
[1742454850078,0.99977472,2015.4,2015.3,2.36788]
[1742454850476,0.00744472,2015.4,2015.3,2.36788]
[1742454851477,0.99977472,2015.4,2015.3,2.36788]
[1742454851676,0.00744472,2015.4,2015.3,2.36788]
[1742454852777,0.99977472,2015.4,2015.3,2.36788]
[1742454852979,0.00744472,2015.4,2015.3,2.36788]
[1742454859980,0.00744472,2015.4,2015.3,6.23108]
[1742454860485,0.00744472,2015.4,2015.3,8.73108]
[1742454860676,0.00744472,2015.4,2015.3,9.10291928]
[1742454860876,3.2078,2015.6,2015.5,0.99228]
[1742454861084,3.2078,2015.6,2015.5,4.18728]
[1742454861984,3.2078,2016.0,2015.9,0.99209]
[1742454862875,3.2078,2016.0,2015.9,2.27549]
[1742454863084,3.2078,2016.0,2015.9,1.2834]
[1742454863281,3.2078,2016.0,2015.9,2.27549]
[1742454863977,3.2078,2016.0,2015.9,2.94089]
[1742454864384,4.5567,2016.0,2015.9,2.27549]
[1742454864584,4.5567,2016.0,2015.9,2.94089]
[1742454865081,3.2078,2016.0,2015.9,2.94089]
[1742454865276,3.2078,2016.0,2015.9,3.60799]
[1742454867590,3.2078,2016.0,2015.9,6.79899]
[1742454870190,3.2078,2016.0,2015.9,6.13189]
[1742454870391,4.5429,2016.0,2015.9,6.13189]
[1742454870591,4.5429,2016.0,2015.9,5.46649]
[1742454870983,3.2078,2016.0,2015.9,5.46649]
[1742454871788,3.2078,2016.0,2015.9,4.4744]
[1742454872292,4.5429,2016.0,2015.9,4.4744]
[1742454872495,4.5429,2016.0,2015.9,2.27549]
[1742454874490,3.2078,2016.0,2015.9,2.27549]
[1742454877491,3.2078,2016.0,2015.9,5.46349]
[1742454878086,1.98444472,2016.2,2016.1,0.99199]
[1742454878087,0.00744472,2016.2,2016.1,0.99199]
[1742454878494,0.00744472,2016.2,2016.1,2.31329]
[1742454879489,0.00744472,2016.2,2016.1,5.50129]
[1742454879897,0.00744472,2016.2,2016.1,1.3213]
[1742454880096,2.08394472,2016.2,2016.1,2.31329]
[1742454880897,0.00744472,2016.2,2016.1,2.31329]
[1742454882497,0.00744472,2016.2,2016.1,3.01839]
[1742454883193,0.00744472,2016.2,2016.1,6.20639]
[1742454884186,0.00744472,2016.2,2016.1,5.50129]
[1742454891302,1.37674472,2016.2,2016.1,5.50129]
[1742454892307,0.00744472,2016.2,2016.1,5.50129]
[1742454895704,0.00744472,2016.2,2016.1,2.31329]
[1742454895902,0.68344472,2016.2,2016.1,5.50029]
[1742454896199,0.68344472,2016.2,2016.1,2.31329]
[1742454896506,1.97654472,2016.2,2016.1,2.31329]
[1742454897212,2.96848472,2016.2,2016.1,1.3213]
[1742454897401,1.97654472,2016.2,2016.1,2.31329]
[1742454898300,2.96848472,2016.2,2016.1,1.3213]
[1742454898607,1.97654472,2016.2,2016.0,0.992]
[1742454898806,1.3837,2016.1,2016.0,0.992]
[1742454901706,1.3837,2016.1,2016.0,4.179]
[1742454903309,0.68344472,2016.2,2016.1,0.99199]
[1742454903605,2.09264472,2016.2,2016.1,1.66149]
[1742454905411,0.00744472,2016.2,2016.1,1.66149]
[1742454906705,0.00744472,2016.2,2016.1,2.20465114]
[1742454911114,0.00744472,2016.2,2016.1,1.53515114]
[1742454911411,0.65354472,2016.2,2016.1,1.53515114]
[1742454911914,0.00744472,2016.2,2016.1,1.53515114]
[1742454912317,1.38654472,2016.2,2016.1,1.53515114]
[1742454914315,1.38654472,2016.2,2016.0,3.2078]
[1742454914518,0.6647,2016.1,2016.0,4.5571]
[1742454914720,0.6647,2016.1,2016.0,6.09231238]
[1742454917719,0.6647,2016.1,2016.0,0.54317238]
[1742454917923,1.65669,2016.1,2016.0,0.54317238]
[1742454918515,1.65669,2016.1,2016.0,1.53522174]
[1742454919323,1.65669,2016.1,2016.0,0.54318174]
[1742454919519,0.99209,2016.0,2015.8,0.9921]
[1742454919825,1.9611,2015.9,2015.8,0.9921]
[1742454920620,1.9611,2015.9,2015.7,4.52734472]
[1742454920819,1.2922,2015.8,2015.7,4.20743472]
[1742454921013,1.2922,2015.8,2015.7,0.00744472]
[1742454921014,2.28434,2015.8,2015.7,0.00744472]
[1742454921225,5.49214,2015.8,2015.7,0.99963472]
[1742454921520,5.49214,2015.8,2015.7,0.00744472]
[1742454922824,6.14154,2015.8,2015.7,0.00744472]
[1742454924429,0.99225,2015.6,2015.5,0.99227]
[1742454924733,0.99225,2015.6,2015.3,1.3633]
[1742454924922,4.5403,2015.7,2015.3,2.35564]
[1742454924923,3.68302,2015.5,2015.3,2.35564]
[1742454925124,1.3533,2015.4,2015.3,2.35568]
[1742454925427,1.3533,2015.4,2015.3,0.99238]
[1742454927246,1.3533,2015.4,2015.3,2.35568]
[1742454928026,1.3533,2015.4,2015.3,1.3633]
[1742454928219,1.3533,2015.4,2015.3,2.35568]
[1742454928418,1.3533,2015.4,2015.3,1.3633]
[1742454928631,2.34563,2015.4,2015.3,1.3633]
[1742454928824,2.34563,2015.4,2015.2,0.9924]
[1742454929023,2.31378,2015.3,2015.1,4.18688472]
[1742454929227,1.3214,2015.3,2015.2,0.99243]
[1742454929423,8.05953,2015.5,2015.3,0.99236]
[1742454929725,0.99237,2015.4,2015.2,2.30821]
[1742454929921,0.99235,2015.4,2015.3,0.99238]
[1742454930131,0.99235,2015.4,2015.1,0.00744472]
[1742454930337,3.188,2015.3,2015.2,0.99241]
[1742454930523,4.18038,2015.3,2015.2,0.99241]
[1742454930723,3.188,2015.3,2015.2,0.99241]
[1742454931024,3.188,2015.3,2015.2,2.28431]
[1742454931628,3.188,2015.3,2015.2,2.81858089]
[1742454932435,3.8792,2015.5,2015.4,0.99233]
[1742454932835,3.8792,2015.5,2015.4,1.52645454]
[1742454933328,3.8792,2015.5,2015.4,1.52638385]
[1742454933529,3.8792,2015.5,2015.4,2.22958385]
[1742454934932,3.2078,2015.5,2015.4,2.22958385]
[1742454936932,3.2078,2015.5,2015.4,2.22958886]
[1742454937133,3.2078,2015.5,2015.4,3.55098886]
[1742454937321,3.20035528,2015.5,2015.4,3.55098886]
[1742454940840,3.20035528,2015.5,2015.4,1.85545886]
[1742454941031,3.20035528,2015.5,2015.4,2.84778886]
[1742454941433,4.19263528,2015.5,2015.4,1.85545886]
[1742454941840,3.20035528,2015.5,2015.4,1.85545886]
[1742454942248,3.20035528,2015.5,2015.4,2.84778886]
[1742454943131,3.20035528,2015.5,2015.4,2.84877525]
[1742454944142,6.3958,2015.8,2015.4,1.85644525]
[1742454944442,1.3045,2015.7,2015.6,0.99221]
[1742454944640,1.3045,2015.7,2015.6,2.88865525]
[1742454944832,1.3045,2015.7,2015.6,1.89644525]
[1742454945141,1.3045,2015.7,2015.6,2.88895445]
[1742454945529,3.2078,2015.8,2015.7,0.99219]
[1742454945728,4.5488,2015.8,2015.7,2.86140445]
[1742454946033,5.54094,2015.8,2015.7,2.86140445]
[1742454946235,5.54094,2015.8,2015.7,0.53531445]
[1742454946729,5.54094,2015.8,2015.7,1.52750445]
[1742454946935,5.54094,2015.8,2015.7,2.86140445]
[1742454947244,5.54094,2015.8,2015.7,2.86179666]
[1742454947245,4.5488,2015.8,2015.7,2.86179666]
[1742454947436,4.5488,2015.8,2015.7,1.86960666]
[1742454947635,5.54094,2015.8,2015.7,0.53570666]
[1742454948445,5.54094,2015.8,2015.7,2.86179666]
[1742454949333,5.54094,2015.8,2015.7,0.53570666]
[1742454950234,8.72894,2015.8,2015.7,0.53570666]
[1742454951942,0.99224,2015.6,2015.5,1.304]
[1742454952135,0.99224,2015.6,2015.5,0.53638646]
[1742454952336,0.99224,2015.6,2015.5,1.52866646]
[1742454952531,1.69364,2015.6,2015.5,2.92796646]
[1742454953039,1.69364,2015.6,2015.5,1.3993]
[1742454953437,2.33564,2015.6,2015.5,1.3993]
[1742454954450,2.33564,2015.6,2015.5,2.39158]
[1742454955138,2.33564,2015.6,2015.5,1.3993]
[1742454955539,0.9923,2015.5,2015.4,0.99231]
[1742454955736,1.343,2015.5,2015.4,0.99231]
[1742454955938,2.33528,2015.5,2015.4,0.99231]
[1742454956137,2.33528,2015.5,2015.3,0.99235]
[1742454956347,0.99228,2015.5,2015.3,0.99235]
[1742454956646,2.33566,2015.6,2015.5,0.99228]
[1742454956842,2.33568,2015.6,2015.4,0.9923]
[1742454957048,2.33568,2015.6,2015.5,1.385]
[1742454957548,1.3434,2015.6,2015.5,2.37728]
[1742454957845,2.33564,2015.6,2015.5,2.37728]
[1742454958748,2.33564,2015.6,2015.5,1.385]
[1742454959047,2.33564,2015.6,2015.5,2.37728]
[1742454959737,1.3434,2015.6,2015.5,2.37728]
[1742454960439,0.99221,2015.7,2015.6,0.99224]
[1742454960640,0.99221,2015.7,2015.6,1.64174]
[1742454961040,7.38798,2015.8,2015.7,0.99219]
[1742454961241,7.38798,2015.8,2015.7,1.3019]
[1742454961546,4.19998,2015.8,2015.7,1.3019]
[1742454961750,0.99228,2015.5,2015.4,3.188]